bitfinex/quotes_SOLUSD_20220207
["timestamp","ask_amount","ask_price","bid_price","bid_amount"]
[1644251627414,75.7598,121.52,121.4,1.15421699]
[1644251627617,75.7598,121.52,121.41,53.92107493]
[1644251627913,1.15864299,121.55,121.41,64.79878353]
[1644251628114,113.13790979,121.58,121.42,1.15421699]
[1644251628115,1.15864299,121.56,121.42,1.15421699]
[1644251628313,1.15864299,121.56,121.47,12.3441]
[1644251628513,1.15864299,121.58,121.48,9.88]
[1644251628713,1.15864299,121.58,121.48,26.962]
[1644251628714,1.19655278,121.58,121.48,26.962]
[1644251628915,1.19655278,121.58,121.49,46.00984448]
[1644251629114,1.15864299,121.61,121.5,9.88]
[1644251629314,1.19655278,121.61,121.5,10.13]
[1644251629516,0.03790979,121.61,121.5,16.13]
[1644251629714,1.15864299,121.61,121.5,16.13]
[1644251630013,1.19655278,121.61,121.51,12.3438]
[1644251630215,46.29009443,121.61,121.52,9.88]
[1644251630413,46.25218464,121.61,121.51,12.3438]
[1644251630713,2.14682857,121.6,121.51,12.3438]
[1644251630914,2.14682857,121.6,121.49,22.2268]
[1644251631113,0.03790979,121.59,121.49,28.2268]
[1644251631312,22.16020907,121.59,121.5,36.95702179]
[1644251631519,22.12229928,121.59,121.5,36.95702179]
[1644251631714,22.37229928,121.59,121.5,36.95702179]
[1644251632016,22.37229928,121.59,121.5,49.30312179]
[1644251634821,22.37229928,121.59,121.48,12.348]
[1644251635316,24.51912785,121.59,121.48,12.348]
[1644251635519,24.51912785,121.59,121.46,9.88]
[1644251635721,0.03790979,121.58,121.47,35.7296248]
[1644251638321,35.55108603,121.57,121.43,9.88]
[1644251639326,35.55108603,121.57,121.44,42.53074347]
[1644251639827,35.55108603,121.57,121.44,52.41074347]
[1644251640027,35.55108603,121.57,121.46,46.76840528]
[1644251640227,35.80108603,121.57,121.46,46.76840528]
[1644251640628,37.9479146,121.57,121.44,9.88]
[1644251640831,37.9479146,121.57,121.43,9.88]
[1644251641053,50.3008146,121.57,121.42,12.3541]
[1644251641230,50.3008146,121.57,121.39,0.024]
[1644251641530,9.88,121.56,121.39,9.904]
[1644251641731,32.82339789,121.55,121.4,47.15075404]
[1644251641931,34.97022646,121.55,121.4,47.15075404]
[1644251642431,35.55108603,121.53,121.4,47.15075404]
[1644251642831,35.55108603,121.53,121.4,59.50695404]
[1644251644432,50.0548146,121.53,121.4,59.50695404]
[1644251645533,50.3048146,121.53,121.4,47.15075404]
[1644251646133,60.1848146,121.53,121.4,47.15075404]
[1644251647438,32.82339789,121.51,121.4,47.15075404]
[1644251647636,45.18259789,121.51,121.4,47.15075404]
[1644251647836,47.32942646,121.51,121.4,47.15075404]
[1644251648237,47.32942646,121.51,121.38,0.024]
[1644251648436,4.117,121.5,121.36,6.08299]
[1644251648658,12.361,121.49,121.37,0.024]
[1644251648858,18.62482857,121.49,121.37,0.024]
[1644251649059,18.87482857,121.49,121.37,0.024]
[1644251649360,35.55108603,121.48,121.37,45.31681541]
[1644251649561,35.55108603,121.48,121.38,6.05799]
[1644251649963,35.55108603,121.48,121.39,41.06006856]
[1644251650159,35.55108603,121.48,121.39,47.14155856]
[1644251650359,35.55108603,121.48,121.39,47.11755856]
[1644251651261,35.80108603,121.48,121.39,47.11755856]
[1644251653462,35.55108603,121.48,121.39,47.11755856]
[1644251654671,35.55108603,121.48,121.39,6.05749]
[1644251655069,47.91298603,121.48,121.39,6.05749]
[1644251655568,59.9398146,121.48,121.39,6.05749]
[1644251655767,59.9398146,121.48,121.36,0.024]
[1644251656173,60.1898146,121.48,121.36,0.024]
[1644251656373,59.9398146,121.48,121.36,0.024]
[1644251656574,47.91298603,121.48,121.36,0.024]
[1644251657174,50.0598146,121.48,121.36,0.024]
[1644251657580,48.953,121.47,121.36,0.024]
[1644251657772,12.3645,121.45,121.36,0.024]
[1644251658370,32.82339789,121.44,121.36,0.024]
[1644251658572,32.82339789,121.44,121.35,38.60362782]
[1644251658772,32.82339789,121.44,121.35,38.62762782]
[1644251660576,34.97022646,121.44,121.32,1.15421699]
[1644251660774,44.85022646,121.44,121.29,1.15421699]
[1644251660977,0.30435508,121.41,121.28,1.15421699]
[1644251661179,12.3705,121.39,121.28,1.15421699]
[1644251661374,12.3705,121.39,121.26,1.15421699]
[1644251661576,37.6979146,121.38,121.27,44.67709034]
[1644251661975,35.55108603,121.38,121.27,44.67709034]
[1644251662274,35.55108603,121.38,121.27,57.04689034]
[1644251662474,35.55108603,121.38,121.27,63.04689034]
[1644251662876,35.55108603,121.38,121.27,67.17689034]
[1644251663177,35.55108603,121.38,121.27,66.92689034]
[1644251663375,35.55108603,121.38,121.27,67.17689034]
[1644251663579,23.5161,121.41,121.27,67.17689034]
[1644251664179,23.5161,121.41,121.27,73.17689034]
[1644251664376,23.5161,121.41,121.27,68.33110733]
[1644251664577,23.5161,121.41,121.27,74.33110733]
[1644251664778,99.3121,121.42,121.28,1.15421699]
[1644251664978,99.3121,121.42,121.32,12.3635]
[1644251665478,146.6724,121.46,121.32,12.3635]
[1644251665678,146.6724,121.46,121.32,28.2435]
[1644251665679,24.4401,121.46,121.32,28.2435]
[1644251665878,48.0926394,121.45,121.33,46.35929092]
[1644251666086,48.0926394,121.45,121.37,43.42122915]
[1644251666379,24.4401,121.46,121.37,43.42122915]
[1644251666579,23.0674,121.48,121.37,43.42122915]
[1644251666782,9.88,121.51,121.37,43.67122915]
[1644251666980,6.18045,121.5,121.41,12.3554]
[1644251667323,6.18045,121.5,121.41,24.8154]
[1644251667579,6.18045,121.5,121.42,50.75838819]
[1644251667782,35.59617567,121.5,121.42,51.00838819]
[1644251667980,35.59617567,121.5,121.42,57.00838819]
[1644251668179,35.59617567,121.5,121.42,51.00838819]
[1644251669080,35.59617567,121.5,121.44,54.53078597]
[1644251669480,35.59617567,121.5,121.44,12.3516]
[1644251669680,35.59617567,121.5,121.41,9.88]
[1644251670080,35.59617567,121.5,121.41,2.502133]
[1644251670283,35.84617567,121.5,121.41,2.502133]
[1644251670483,6.18045,121.5,121.42,12.3541]
[1644251670682,6.18045,121.5,121.43,9.88]
[1644251670982,6.18045,121.5,121.4,9.88]
[1644251671181,6.18045,121.5,121.39,9.88]
[1644251671382,40.28910904,121.49,121.4,41.8141178]
[1644251671582,6.18045,121.48,121.4,54.1702178]
[1644251671783,6.18045,121.48,121.41,9.88]
[1644251672584,6.18045,121.48,121.42,38.33306008]
[1644251672787,6.18045,121.48,121.43,9.88]
[1644251672984,6.18045,121.48,121.43,22.2333]
[1644251673184,6.18045,121.48,121.43,12.3533]
[1644251673385,6.18045,121.48,121.42,38.33306008]
[1644251673783,6.43045,121.48,121.42,38.33306008]
[1644251674185,6.18045,121.48,121.42,50.68766008]
[1644251674386,1.15864299,121.53,121.43,9.88]
[1644251674588,1.15864299,121.54,121.43,15.88]
[1644251674814,1.15864299,121.55,121.43,15.88]
[1644251674987,1.15864299,121.56,121.43,15.88]
[1644251675187,1.15864299,121.56,121.44,40.24361626]
[1644251675390,1.15864299,121.56,121.46,12.3471]
[1644251675588,1.15864299,121.56,121.47,9.88]
[1644251675787,2.33841979,121.6,121.47,9.88]
[1644251675788,1.15864299,121.57,121.47,10.13]
[1644251675990,1.19652511,121.58,121.47,16.13]
[1644251676288,1.19652511,121.59,121.48,47.25995904]
[1644251676489,0.03788212,121.58,121.49,9.88]
[1644251676690,1.19652511,121.59,121.5,43.14020501]
[1644251676890,1.15864299,121.59,121.52,12.3402]
[1644251677089,1.15864299,121.59,121.53,54.40826001]
[1644251677291,37.08907239,121.6,121.53,54.40826001]
[1644251677689,0.03788212,121.62,121.53,54.65826001]
[1644251677893,0.03788212,121.62,121.53,67.26026001]
[1644251678090,1.19652511,121.64,121.54,12.3409]
[1644251678290,0.03788212,121.63,121.54,22.2209]
[1644251678492,5.71833212,121.64,121.54,22.2209]
[1644251678692,53.72809685,121.64,121.55,43.14743818]
[1644251678890,54.88673984,121.64,121.55,43.14743818]
[1644251679091,53.72809685,121.64,121.55,43.14743818]
[1644251680095,53.72809685,121.64,121.55,55.48893818]
[1644251680498,5.71833212,121.64,121.55,55.48893818]
[1644251680695,5.71833212,121.64,121.55,71.61893818]
[1644251680895,5.71833212,121.64,121.55,71.36893818]
[1644251681099,5.71833212,121.64,121.55,65.36893818]
[1644251681697,5.96833212,121.64,121.55,65.36893818]
[1644251681897,1.15864299,121.67,121.55,65.36893818]
[1644251682098,1.82520349,121.68,121.55,83.76493818]
[1644251682324,1.82520349,121.68,121.55,84.01493818]
[1644251682325,0.6665605,121.68,121.55,84.01493818]
[1644251682521,0.6665605,121.68,121.55,111.55404553]
[1644251682821,0.6665605,121.68,121.59,12.3321]
[1644251682822,48.70069258,121.67,121.59,12.3321]
[1644251683024,0.6665605,121.68,121.6,54.28651736]
[1644251683621,0.6665605,121.68,121.6,54.53651736]
[1644251684026,42.92661748,121.68,121.6,54.53651736]
[1644251684224,42.92661748,121.68,121.6,54.28651736]
[1644251684426,42.92661748,121.68,121.6,9.88]
[1644251684825,43.17661748,121.68,121.6,9.88]
[1644251685224,0.6665605,121.68,121.6,9.88]
[1644251685425,0.6665605,121.68,121.6,30.5747]
[1644251685629,0.6665605,121.68,121.6,36.5747]
[1644251686026,0.6665605,121.68,121.6,30.5747]
[1644251686226,0.6665605,121.68,121.61,42.56409163]
[1644251686529,0.6665605,121.68,121.64,37.99644476]
[1644251687126,0.6665605,121.68,121.63,12.3316]
[1644251687627,0.6665605,121.68,121.61,22.2138]
[1644251687926,0.6665605,121.68,121.61,12.3338]
[1644251688129,0.6665605,121.68,121.62,47.89631595]
[1644251689128,40.32076402,121.68,121.62,47.89631595]
[1644251689629,40.32076402,121.68,121.56,49.2459]
[1644251689831,40.32076402,121.68,121.57,9.88]
[1644251690231,40.32076402,121.68,121.57,10.13]
[1644251690634,40.32076402,121.68,121.58,38.00558575]
[1644251690831,40.32076402,121.68,121.59,9.88]
[1644251691031,40.32076402,121.68,121.6,50.73061059]
[1644251691232,0.6665605,121.68,121.6,38.39601059]
[1644251692234,0.6665605,121.68,121.6,38.64601059]
[1644251692834,0.6665605,121.68,121.61,9.88]
[1644251693240,0.6665605,121.68,121.61,16.13]
[1644251693635,0.6665605,121.68,121.62,34.33147316]
[1644251693839,0.6665605,121.68,121.62,44.21147316]
[1644251694237,39.84568395,121.68,121.62,9.88]
[1644251694437,39.84568395,121.68,121.61,12.3333]
[1644251694835,0.9165605,121.68,121.61,12.3333]
[1644251695237,0.6665605,121.68,121.61,12.3333]
[1644251695841,38.62360459,121.67,121.6,40.52282556]
[1644251696241,38.87360459,121.67,121.6,40.52282556]
[1644251696441,0.70448888,121.68,121.6,40.77282556]
[1644251696642,0.6665605,121.68,121.6,40.77282556]
[1644251696841,0.6665605,121.68,121.6,53.10732556]
[1644251697242,0.6665605,121.68,121.6,62.98732556]
[1644251698143,0.6665605,121.68,121.6,68.98732556]
[1644251699343,39.43463401,121.67,121.6,62.73732556]
[1644251699742,0.25,121.67,121.6,62.73732556]
[1644251700143,0.6665605,121.68,121.6,62.73732556]
[1644251700744,0.6665605,121.68,121.6,68.98732556]
[1644251701944,0.03792838,121.69,121.6,68.98732556]
[1644251702146,0.1821184,121.71,121.6,68.98732556]
[1644251702945,0.1821184,121.71,121.6,82.74120206]
[1644251703145,0.53954792,121.72,121.6,82.74120206]
[1644251703652,0.53954792,121.72,121.6,68.73732556]
[1644251703847,46.26103116,121.71,121.6,68.73732556]
[1644251704047,46.26103116,121.71,121.6,62.73732556]
[1644251704247,46.51103116,121.71,121.6,62.73732556]
[1644251706048,58.84543116,121.71,121.6,62.73732556]
[1644251706253,64.11307415,121.71,121.6,22.2145]
[1644251706449,1.15864299,121.7,121.57,22.2166]
[1644251706652,1.15864299,121.68,121.57,12.3366]
[1644251706949,1.15864299,121.68,121.56,11.85]
[1644251707149,28.96046326,121.68,121.56,11.85]
[1644251707549,28.96046326,121.68,121.57,48.80244147]
[1644251708151,30.11910625,121.68,121.57,48.80244147]
[1644251708352,32.26593482,121.68,121.57,48.80244147]
[1644251708573,42.45630625,121.68,121.57,36.46514147]
[1644251708754,42.79800453,121.68,121.57,36.46514147]
[1644251708955,42.79800453,121.68,121.57,42.51366147]
[1644251709154,44.9448331,121.68,121.57,42.51366147]
[1644251709353,45.13816423,121.66,121.57,42.51366147]
[1644251710152,46.29680722,121.66,121.57,42.51366147]
[1644251710653,61.12513407,121.66,121.57,42.51366147]
[1644251710854,30.08333019,121.64,121.57,42.51366147]
[1644251711555,30.33333019,121.64,121.57,42.51366147]
[1644251711755,30.67502847,121.64,121.57,42.51366147]
[1644251712155,30.67502847,121.64,121.57,41.01366147]
[1644251713053,43.01592847,121.64,121.57,41.01366147]
[1644251714457,0.34169828,121.64,121.57,41.01366147]
[1644251716086,0.34169828,121.64,121.57,53.35106147]
[1644251716589,0.34169828,121.64,121.57,41.01366147]
[1644251718988,0.34169828,121.64,121.57,53.35126147]
[1644251719390,0.34169828,121.64,121.57,47.55274147]
[1644251719592,0.34169828,121.64,121.58,11.85]
[1644251719792,0.34169828,121.64,121.58,12.1]
[1644251720392,0.34169828,121.64,121.59,47.08545487]
[1644251720593,0.34169828,121.64,121.6,11.85]
[1644251720795,0.34169828,121.64,121.61,46.05130265]
[1644251720994,0.34169828,121.64,121.61,58.38520265]
[1644251721393,1.15864299,121.69,121.61,58.38520265]
[1644251721593,1.15864299,121.69,121.61,70.23520265]
[1644251721794,1.15864299,121.7,121.61,70.23520265]
[1644251723094,30.96760079,121.7,121.61,70.23520265]
[1644251723392,1.15864299,121.7,121.61,70.23520265]
[1644251724395,1.15864299,121.69,121.61,70.23520265]
[1644251724595,42.57380006,121.7,121.61,76.23520265]
[1644251725293,1.40864299,121.7,121.61,76.48520265]
[1644251725692,1.40864299,121.7,121.61,76.23520265]
[1644251726293,1.15864299,121.7,121.61,76.23520265]
[1644251726701,1.15864299,121.7,121.64,12.3289]
[1644251726897,1.44702303,121.71,121.65,11.85]
[1644251727294,1.44702303,121.71,121.66,34.55900866]
[1644251727695,0.53838004,121.71,121.66,34.55900866]
[1644251727895,0.28838004,121.71,121.66,46.88750866]
[1644251728096,0.8530876,121.72,121.66,66.46694137]
[1644251728296,0.8530876,121.72,121.66,66.71694137]
[1644251728895,0.8530876,121.72,121.69,40.77825117]
[1644251729096,0.8530876,121.72,121.71,46.69867696]
[1644251729297,0.8530876,121.72,121.71,11.85]
[1644251729896,0.8530876,121.72,121.69,11.85]
[1644251730097,0.8530876,121.72,121.69,24.1759]
[1644251730296,0.8530876,121.72,121.69,11.85]
[1644251731301,0.8530876,121.72,121.65,41.0884]
[1644251731500,0.8530876,121.72,121.66,11.85]
[1644251732108,0.8530876,121.72,121.66,56.60674243]
[1644251732300,0.8530876,121.72,121.66,11.85]
[1644251732907,0.8530876,121.72,121.66,24.1789]
[1644251733307,0.8530876,121.72,121.66,66.74386085]
[1644251733710,0.8530876,121.72,121.66,24.1789]
[1644251734833,0.8530876,121.72,121.66,68.42739451]
[1644251735205,0.8530876,121.72,121.66,24.1789]
[1644251736709,0.8530876,121.72,121.66,32.15833271]
[1644251737609,0.8530876,121.72,121.68,12.323]
[1644251737808,0.8530876,121.72,121.69,11.85]
[1644251738009,1.17077813,121.78,121.69,11.85]
[1644251738211,1.17077813,121.79,121.69,17.85]
[1644251738412,1.17077813,121.8,121.7,149.84495886]
[1644251738615,1.17077813,121.8,121.71,11.85]
[1644251738810,1.17077813,121.8,121.72,40.28687902]
[1644251739011,1.17077813,121.8,121.74,38.77353814]
[1644251739213,1.17077813,121.8,121.76,36.64452109]
[1644251739509,1.17077813,121.82,121.76,48.49452109]
[1644251740110,75.17327813,121.83,121.76,48.49452109]
[1644251741114,74.0025,121.83,121.76,48.49452109]
[1644251741315,1.75150665,121.84,121.76,48.49452109]
[1644251741516,2.33841979,121.87,121.76,62.5418294]
[1644251741714,1.16501661,121.85,121.76,216.9018294]
[1644251741914,1.16501661,121.88,121.79,148.11]
[1644251742114,45.5155,121.92,121.79,154.11]
[1644251742352,8.13938695,121.94,121.8,52.09871627]
[1644251742518,8.13938695,121.94,121.82,160.4192]
[1644251742718,8.13938695,121.94,121.83,11.85]
[1644251742920,8.13938695,121.94,121.84,148.11]
[1644251743117,2.14682857,121.93,121.85,11.85]
[1644251743317,42.70753742,121.93,121.85,11.85]
[1644251743718,2.14682857,121.92,121.83,11.85]
[1644251743917,2.14682857,121.92,121.82,11.85]
[1644251744518,38.08767064,121.91,121.82,11.85]
[1644251745136,8.13938695,121.94,121.82,11.85]
[1644251745421,12.3432,121.98,121.83,46.0]
[1644251745633,10.0,122.0,121.82,1.98533716]
[1644251745923,20.71341444,122.0,121.9,148.11]
[1644251746119,20.71341444,122.0,121.93,148.11]
[1644251746318,19.21341444,122.0,121.95,148.11]
[1644251746519,2.05581751,122.0,121.95,148.11]
[1644251747118,0.43241751,122.0,121.95,148.36]
[1644251747319,0.43241751,122.0,121.96,11.85]
[1644251747621,0.43241751,122.0,121.92,11.85]
[1644251747819,0.43241751,122.0,121.92,12.1]
[1644251748019,0.43241751,122.0,121.9,6.0]
[1644251748222,0.43241751,122.0,121.91,9.85]
[1644251748621,0.43241751,122.0,121.91,52.9095]
[1644251748820,0.43241751,122.0,121.91,47.1595]
[1644251749020,0.43241751,122.0,121.92,18.44605378]
[1644251749224,0.43241751,122.0,121.92,133.02]
[1644251749421,0.43241751,122.0,121.92,9.85]
[1644251749623,0.43241751,122.0,121.92,133.02]
[1644251750021,0.43241751,122.0,121.92,124.95057553]
[1644251750228,0.43241751,122.0,121.92,123.17]
[1644251750426,0.43241751,122.0,121.87,14.07987553]
[1644251750623,0.43241751,122.0,121.93,11.63057553]
[1644251750824,0.43241751,122.0,121.94,9.85]
[1644251751624,0.43241751,122.0,121.88,45.7095]
[1644251751824,0.43241751,122.0,121.92,9.85]
[1644251752826,35.99064354,122.03,121.92,9.85]
[1644251753024,34.99064354,122.03,121.92,9.85]
[1644251753629,34.99064354,122.03,121.89,9.85]
[1644251753827,43.42764354,122.03,121.86,9.85]
[1644251754029,6.07782857,122.02,121.86,9.85]
[1644251754426,2.14682857,122.01,121.86,9.85]
[1644251754627,2.952,122.0,121.83,9.85]
[1644251754827,3.27086816,122.0,121.79,13.33342482]
[1644251755032,3.27086816,122.0,121.75,41.0179]
[1644251755033,0.32168349,121.94,121.75,13.33342482]
[1644251755229,0.32168349,121.94,121.68,125.93132899]
[1644251755431,2.14682857,121.93,121.7,71.7201]
[1644251755627,2.14682857,121.93,121.71,48.57760425]
[1644251755628,46.90161848,121.92,121.71,48.57760425]
[1644251755829,46.40161848,121.92,121.71,48.57760425]
[1644251756029,46.40161848,121.92,121.73,7.53962764]
[1644251756229,48.54844705,121.92,121.74,9.85]
[1644251756429,48.54844705,121.92,121.75,38.72760425]
[1644251756629,46.40161848,121.92,121.76,9.85]
[1644251756830,2.14682857,121.91,121.76,9.85]
[1644251757231,2.14682857,121.91,121.71,12.3225712]
[1644251757468,2.14682857,121.91,121.74,9.85]
[1644251757667,9.85,121.9,121.71,9.85]
[1644251757869,35.55920893,121.89,121.71,50.94850058]
[1644251758173,47.5560375,121.89,121.71,9.85]
[1644251758371,47.5560375,121.89,121.68,9.85]
[1644251758372,2.44734262,121.88,121.68,9.85]
[1644251758571,9.85,121.87,121.68,9.85]
[1644251758767,78.5723,121.86,121.68,9.85]
[1644251758966,0.3077248,121.84,121.68,9.85]
[1644251759165,5.3077248,121.84,121.65,9.85]
[1644251759567,11.99682857,121.83,121.65,9.85]
[1644251759968,2.14682857,121.82,121.65,9.85]
[1644251760267,41.18327853,121.81,121.66,34.4578499]
[1644251760472,41.18327853,121.81,121.67,9.85]
[1644251760672,41.18327853,121.81,121.68,11.80938199]
[1644251760870,41.18327853,121.81,121.69,9.85]
[1644251761166,41.18327853,121.81,121.7,6.04206]
[1644251761866,97.0,121.8,121.65,9.85]
[1644251762067,117.58890074,121.8,121.61,9.85]
[1644251762266,36.78481874,121.79,121.61,9.85]
[1644251762467,36.78481874,121.79,121.61,22.86997861]
[1644251762668,43.45828339,121.77,121.61,22.86997861]
[1644251762867,43.45828339,121.77,121.63,35.01878187]
[1644251763068,43.45828339,121.77,121.65,13.01997861]
[1644251763372,43.45828339,121.77,121.65,22.86997861]
[1644251763568,43.45828339,121.77,121.66,1.77146859]
[1644251763871,96.3729,121.85,121.67,44.86878187]
[1644251764069,78.5723,121.86,121.67,50.86878187]
[1644251764269,9.85,121.91,121.68,1.77146859]
[1644251764467,75.9791,121.93,121.76,123.17]
[1644251764670,82.15955,121.93,121.77,9.85]
[1644251764869,41.01401783,121.92,121.77,11.62784456]
[1644251765070,41.01401783,121.92,121.77,9.85]
[1644251765471,41.01401783,121.92,121.78,1.77784456]
[1644251765672,41.01401783,121.92,121.79,9.85]
[1644251766376,41.01401783,121.92,121.79,1.77784456]
[1644251766572,41.01401783,121.92,121.74,9.85]
[1644251766771,9.85,121.91,121.7,9.85]
[1644251766973,0.32456869,121.89,121.67,12.18132899]
[1644251767172,9.85,121.88,121.67,9.85]
[1644251767372,44.47405233,121.87,121.67,9.85]
[1644251767574,9.85,121.86,121.68,1.56652991]
[1644251767775,43.26901624,121.85,121.68,13.18881012]
[1644251767976,43.26901624,121.85,121.69,1.77228021]
[1644251768175,43.26901624,121.85,121.7,9.85]
[1644251768377,43.26901624,121.85,121.7,44.51096457]
[1644251768599,43.26901624,121.85,121.7,52.28324478]
[1644251768774,43.26901624,121.85,121.7,60.50567578]
[1644251769777,43.26901624,121.85,121.7,60.75567578]
[1644251769978,43.26901624,121.85,121.72,13.37779591]
[1644251770177,43.26901624,121.85,121.73,9.85]
[1644251770378,43.26901624,121.85,121.73,11.62228021]
[1644251770578,43.26901624,121.85,121.73,9.85]
[1644251770778,43.26901624,121.85,121.7,11.62228021]
[1644251770981,43.26901624,121.85,121.7,17.62228021]
[1644251771179,43.51901624,121.85,121.7,17.62228021]
[1644251771380,43.51901624,121.85,121.71,35.88998137]
[1644251771679,43.26901624,121.85,121.72,9.85]
[1644251771879,43.26901624,121.85,121.72,11.62228021]
[1644251772081,43.26901624,121.85,121.73,1.77228021]
[1644251772279,43.26901624,121.85,121.72,15.85]
[1644251772481,2.14682857,121.84,121.69,1.77228021]
[1644251772680,2.14682857,121.84,121.69,9.85]
[1644251772879,41.76280243,121.83,121.69,48.5660827]
[1644251773482,41.76280243,121.83,121.69,44.7160827]
[1644251773779,41.76280243,121.83,121.71,9.32267778]
[1644251773979,41.76280243,121.83,121.72,9.85]
[1644251774180,24.7009,121.9,121.72,17.61679578]
[1644251774382,24.7009,121.9,121.73,1.76679578]
[1644251774582,119.909,121.92,121.74,9.85]
[1644251774784,119.909,121.92,121.74,10.1]
[1644251774983,119.909,121.92,121.75,1.76679578]
[1644251775182,34.76738815,121.91,121.76,45.29314074]
[1644251775582,34.76738815,121.91,121.76,53.05993652]
[1644251776185,34.76738815,121.91,121.76,53.30993652]
[1644251776682,34.76738815,121.91,121.76,61.46014529]
[1644251776884,34.76738815,121.91,121.76,53.30993652]
[1644251777083,36.91421672,121.91,121.76,9.85]
[1644251778085,34.76738815,121.91,121.77,41.16966957]
[1644251778284,34.76738815,121.91,121.77,11.61679578]
[1644251778487,34.76738815,121.91,121.77,9.85]
[1644251779387,34.76738815,121.91,121.78,45.66528298]
[1644251779587,34.76738815,121.91,121.78,51.66528298]
[1644251779791,34.76738815,121.91,121.78,61.76528298]
[1644251779988,34.76738815,121.91,121.8,2.3734775]
[1644251780187,34.76738815,121.91,121.81,9.85]
[1644251780688,34.76738815,121.91,121.81,15.85]
[1644251781497,34.76738815,121.91,121.81,9.85]
[1644251781690,34.76738815,121.91,121.82,38.41309365]
[1644251782188,75.9791,121.93,121.84,9.62566683]
[1644251782488,138.1333,121.99,121.85,1.7612501]
[1644251782690,138.1333,121.99,121.85,7.7612501]
[1644251782888,138.1333,121.99,121.84,9.85]
[1644251783709,36.31437144,121.98,121.84,9.85]
[1644251783907,36.31437144,121.98,121.82,1.7612501]
[1644251784108,36.31437144,121.98,121.81,35.0598501]
[1644251784109,36.56437144,121.98,121.81,35.0598501]
[1644251784308,36.56437144,121.98,121.81,11.6112501]
[1644251784708,0.31962297,121.96,121.77,1.7612501]
[1644251784911,45.51840947,121.94,121.74,2.33132899]
[1644251785109,58.4195,121.93,121.74,5.70682454]
[1644251785309,60.56632857,121.93,121.75,2.33132899]
[1644251785511,58.4195,121.93,121.75,2.33132899]
[1644251785709,2.14682857,121.92,121.76,12.18132899]
[1644251786010,41.13472362,121.92,121.77,41.03602352]
[1644251786216,41.13472362,121.92,121.78,13.22549555]
[1644251786411,41.13472362,121.92,121.79,25.36497816]
[1644251786613,41.13472362,121.92,121.79,37.83948261]
[1644251786811,41.13472362,121.92,121.79,39.59613219]
[1644251787411,41.13472362,121.92,121.79,33.59613219]
[1644251788312,41.13472362,121.92,121.79,1.75664958]
[1644251788512,41.13472362,121.92,121.76,13.93797857]
[1644251788715,43.28155219,121.92,121.77,2.33132899]
[1644251788912,43.28155219,121.92,121.75,2.33132899]
[1644251789112,53.13155219,121.92,121.74,5.71085659]
[1644251789314,47.24162772,121.9,121.76,39.92933521]
[1644251789715,47.49162772,121.9,121.76,39.92933521]
[1644251790016,47.49162772,121.9,121.76,41.68598479]
[1644251790617,47.24162772,121.9,121.76,47.68598479]
[1644251790821,72.6227,121.91,121.77,9.85]
[1644251791219,72.6227,121.91,121.78,1.75664958]
[1644251791417,72.6227,121.91,121.79,9.85]
[1644251791815,41.89758119,121.9,121.78,21.47732495]
[1644251792618,42.14758119,121.9,121.78,21.47732495]
[1644251793118,41.89758119,121.9,121.78,21.47732495]
[1644251793723,41.89758119,121.9,121.78,1.75664958]
[1644251793919,41.89758119,121.9,121.79,1.75664958]
[1644251794719,42.14758119,121.9,121.8,46.1195069]
[1644251794920,72.6227,121.91,121.8,46.1195069]
[1644251795220,49.6836,121.94,121.81,1.75220868]
[1644251795419,49.6836,121.94,121.81,11.60220868]
[1644251795621,49.6836,121.94,121.81,17.85220868]
[1644251795819,49.6836,121.94,121.82,1.75220868]
[1644251796020,36.41878777,121.93,121.8,46.1195069]
[1644251796620,36.66878777,121.93,121.78,22.571]
[1644251796821,9.85,121.92,121.78,22.571]
[1644251797021,9.85,121.92,121.77,26.13250868]
[1644251797422,2.14682857,121.91,121.77,24.3803]
[1644251797625,39.06677108,121.9,121.78,35.58974293]
[1644251798624,39.06677108,121.9,121.78,35.33974293]
[1644251799025,39.06677108,121.9,121.8,24.06026765]
[1644251799424,39.06677108,121.9,121.79,9.85]
[1644251799625,39.06677108,121.9,121.77,34.2303]
[1644251799924,39.06677108,121.9,121.77,40.2303]
[1644251800125,39.06677108,121.9,121.77,34.2303]
[1644251800527,39.31677108,121.9,121.78,41.93677944]
[1644251800728,39.31677108,121.9,121.77,24.3803]
[1644251801626,39.31677108,121.9,121.78,39.05800379]
[1644251802529,39.31677108,121.9,121.77,24.3803]